[Event "*** SCC Grand Prix: Titled Tuesday Blitz"]
[Site "Chess.com"]
[Date "2020.08.11"]
[Round "2"]
[White "Ladislav1969"]
[Black "sertalzin"]
[Result "1-0"]
[WhiteElo "2342"]
[BlackElo "1832"]
[TimeControl "180+1"]
[EndTime "10:17:46 PDT"]
[Termination "Ladislav1969 won on time"]

1. e4 {[%clk 0:03:00.9]} 1... c6 {[%clk 0:02:59]} 2. d4 {[%clk 0:02:59.2]} 2...
d5 {[%clk 0:02:59.5]} 3. e5 {[%clk 0:02:59.8]} 3... c5 {[%clk 0:02:57.5]} 4.
dxc5 {[%clk 0:02:59.1]} 4... e6 {[%clk 0:02:56.2]} 5. Be3 {[%clk 0:02:54.2]}
5... Nd7 {[%clk 0:02:54.4]} 6. Nf3 {[%clk 0:02:51.7]} 6... Bxc5 {[%clk
0:02:51.1]} 7. Bxc5 {[%clk 0:02:44.3]} 7... Nxc5 {[%clk 0:02:50.5]} 8. Nbd2
{[%clk 0:02:30.7]} 8... Ne7 {[%clk 0:02:46.8]} 9. Nb3 {[%clk 0:02:29]} 9... Nxb3
{[%clk 0:02:35]} 10. axb3 {[%clk 0:02:28.2]} 10... O-O {[%clk 0:02:34.1]} 11.
Bd3 {[%clk 0:02:24.4]} 11... h6 {[%clk 0:02:24.9]} 12. O-O {[%clk 0:02:13.5]}
12... a5 {[%clk 0:02:20.1]} 13. c3 {[%clk 0:02:06]} 13... b6 {[%clk 0:02:15]}
14. Qe2 {[%clk 0:01:51.2]} 14... Bd7 {[%clk 0:02:01.2]} 15. Bc2 {[%clk
0:01:49.1]} 15... f5 {[%clk 0:01:38.5]} 16. exf6 {[%clk 0:01:46]} 16... Rxf6
{[%clk 0:01:37.7]} 17. Ne5 {[%clk 0:01:38.3]} 17... Nc6 {[%clk 0:01:12.2]} 18.
f4 {[%clk 0:01:23.8]} 18... Nxe5 {[%clk 0:00:54.6]} 19. fxe5 {[%clk 0:01:23.3]}
19... Rxf1+ {[%clk 0:00:20.2]} 20. Rxf1 {[%clk 0:01:24.2]} 20... Qe7 {[%clk
0:00:19.8]} 21. Qd3 {[%clk 0:01:22.9]} 21... g5 {[%clk 0:00:19.2]} 22. Rf6
{[%clk 0:01:09.5]} 22... Rb8 {[%clk 0:00:04.6]} 23. Rg6+ {[%clk 0:00:59.7]}
23... Kf8 {[%clk 0:00:02.4]} 24. Qf3+ {[%clk 0:00:56.7]} 24... Ke8 {[%clk
0:00:01.9]} 25. Rg8+ {[%clk 0:00:56.1]} 1-0

[Event "*** SCC Grand Prix: Titled Tuesday Blitz"]
[Site "Chess.com"]
[Date "2020.08.11"]
[Round "2"]
[White "WIDBIFS"]
[Black "zmeeed67"]
[Result "1-0"]
[WhiteElo "2725"]
[BlackElo "2486"]
[TimeControl "180+1"]
[EndTime "10:17:47 PDT"]
[Termination "WIDBIFS won by resignation"]

1. d4 {[%clk 0:03:00.9]} 1... d5 {[%clk 0:02:59.9]} 2. Nf3 {[%clk 0:03:00.2]}
2... Nf6 {[%clk 0:02:59.7]} 3. Bf4 {[%clk 0:03:00.2]} 3... c5 {[%clk 0:02:59.9]}
4. e3 {[%clk 0:03:00.7]} 4... Nc6 {[%clk 0:03:00.3]} 5. Nbd2 {[%clk 0:03:01.2]}
5... Bg4 {[%clk 0:02:56.5]} 6. c3 {[%clk 0:03:00.2]} 6... e6 {[%clk 0:02:55]} 7.
Qa4 {[%clk 0:03:00.7]} 7... Bxf3 {[%clk 0:02:52.3]} 8. Nxf3 {[%clk 0:03:00]}
8... Nd7 {[%clk 0:02:33.4]} 9. Bb5 {[%clk 0:02:55.5]} 9... Qb6 {[%clk
0:02:31.1]} 10. Ne5 {[%clk 0:02:52.7]} 10... Ndxe5 {[%clk 0:02:22.7]} 11. Bxe5
{[%clk 0:02:53.6]} 11... a6 {[%clk 0:02:20.7]} 12. Bxc6+ {[%clk 0:02:37.4]}
12... bxc6 {[%clk 0:02:21.6]} 13. O-O {[%clk 0:02:27.8]} 13... Qb5 {[%clk
0:02:07.9]} 14. Qc2 {[%clk 0:02:27.2]} 14... f6 {[%clk 0:01:55.1]} 15. Bg3
{[%clk 0:02:27.2]} 15... Be7 {[%clk 0:01:55.1]} 16. b3 {[%clk 0:02:26]} 16...
O-O {[%clk 0:01:48.2]} 17. c4 {[%clk 0:02:23.2]} 17... Qb6 {[%clk 0:01:48.5]}
18. dxc5 {[%clk 0:02:16.2]} 18... Bxc5 {[%clk 0:01:41.8]} 19. Rac1 {[%clk
0:02:13.7]} 19... Rac8 {[%clk 0:01:41.4]} 20. Rfd1 {[%clk 0:02:13.1]} 20... Rfd8
{[%clk 0:01:39.5]} 21. h3 {[%clk 0:02:12.8]} 21... Ba3 {[%clk 0:01:37.2]} 22.
Rb1 {[%clk 0:02:08.5]} 22... e5 {[%clk 0:01:36.2]} 23. Rd3 {[%clk 0:01:57.9]}
23... d4 {[%clk 0:01:12.6]} 24. b4 {[%clk 0:01:47.7]} 24... Bxb4 {[%clk
0:01:03]} 25. a3 {[%clk 0:01:47.7]} 25... dxe3 {[%clk 0:00:59.5]} 26. Rxe3
{[%clk 0:01:42.2]} 26... c5 {[%clk 0:00:47.6]} 27. axb4 {[%clk 0:01:15.7]} 27...
cxb4 {[%clk 0:00:48.5]} 28. Rd3 {[%clk 0:01:15.2]} 28... a5 {[%clk 0:00:30.9]}
29. Rxd8+ {[%clk 0:01:12.1]} 29... Qxd8 {[%clk 0:00:31.8]} 30. Rd1 {[%clk
0:01:00.8]} 30... Qc7 {[%clk 0:00:27.2]} 31. Kh2 {[%clk 0:00:50.5]} 31... Qxc4
{[%clk 0:00:23.5]} 32. Rd8+ {[%clk 0:00:50.5]} 32... Kf7 {[%clk 0:00:23.9]} 33.
Rxc8 {[%clk 0:00:50.3]} 1-0

[Event "*** SCC Grand Prix: Titled Tuesday Blitz"]
[Site "Chess.com"]
[Date "2020.08.11"]
[Round "2"]
[White "Srchesschilango"]
[Black "MokshAD1603"]
[Result "0-1"]
[WhiteElo "2224"]
[BlackElo "2443"]
[TimeControl "180+1"]
[EndTime "10:17:48 PDT"]
[Termination "MokshAD1603 won by checkmate"]

1. d4 {[%clk 0:03:00.5]} 1... Nf6 {[%clk 0:02:54.2]} 2. c4 {[%clk 0:03:00.1]}
2... g6 {[%clk 0:02:53.8]} 3. Nc3 {[%clk 0:03:00]} 3... d5 {[%clk 0:02:53.8]} 4.
cxd5 {[%clk 0:02:55.3]} 4... Nxd5 {[%clk 0:02:53.3]} 5. e4 {[%clk 0:02:54.4]}
5... Nxc3 {[%clk 0:02:53.2]} 6. bxc3 {[%clk 0:02:54.5]} 6... Bg7 {[%clk
0:02:54.1]} 7. Bb5+ {[%clk 0:02:54.6]} 7... c6 {[%clk 0:02:52.6]} 8. Bc4 {[%clk
0:02:54.9]} 8... c5 {[%clk 0:02:50.4]} 9. Ne2 {[%clk 0:02:54.2]} 9... Nc6 {[%clk
0:02:50.4]} 10. Be3 {[%clk 0:02:53.5]} 10... O-O {[%clk 0:02:50.4]} 11. O-O
{[%clk 0:02:53.1]} 11... b6 {[%clk 0:02:50.1]} 12. Rc1 {[%clk 0:02:50.7]} 12...
Bb7 {[%clk 0:02:49.3]} 13. d5 {[%clk 0:02:42.7]} 13... Ne5 {[%clk 0:02:29]} 14.
Bb3 {[%clk 0:02:39.1]} 14... c4 {[%clk 0:02:28.8]} 15. Bc2 {[%clk 0:02:38]}
15... e6 {[%clk 0:02:29.2]} 16. dxe6 {[%clk 0:02:28.8]} 16... fxe6 {[%clk
0:02:30.1]} 17. Nd4 {[%clk 0:02:24.2]} 17... Qh4 {[%clk 0:02:12.8]} 18. h3
{[%clk 0:01:57.2]} 18... Bxe4 {[%clk 0:01:35.9]} 19. Nxe6 {[%clk 0:01:31.7]}
19... Nf3+ {[%clk 0:01:29.7]} 20. Kh1 {[%clk 0:01:19.7]} 20... Bc6 {[%clk
0:01:00.7]} 21. Nxf8 {[%clk 0:01:09.2]} 21... Rxf8 {[%clk 0:01:01.6]} 22. Qd6
{[%clk 0:01:07.7]} 22... Ne5 {[%clk 0:01:01.2]} 23. Kg1 {[%clk 0:00:54]} 23...
Bd7 {[%clk 0:00:36.9]} 24. f4 {[%clk 0:00:50.8]} 24... Qg3 {[%clk 0:00:20.7]}
25. Bf2 {[%clk 0:00:45.5]} 25... Nf3+ {[%clk 0:00:20.4]} 26. Kh1 {[%clk
0:00:36.2]} 26... Qh2# {[%clk 0:00:21.3]} 0-1

[Event "*** SCC Grand Prix: Titled Tuesday Blitz"]
[Site "Chess.com"]
[Date "2020.08.11"]
[Round "2"]
[White "chigorin28"]
[Black "BabyBoss31"]
[Result "0-1"]
[WhiteElo "2412"]
[BlackElo "2221"]
[TimeControl "180+1"]
[EndTime "10:17:50 PDT"]
[Termination "BabyBoss31 won on time"]

1. e4 {[%clk 0:03:00.9]} 1... e6 {[%clk 0:02:59.1]} 2. d4 {[%clk 0:02:59.2]}
2... d5 {[%clk 0:02:58]} 3. Bd3 {[%clk 0:02:54.7]} 3... Nf6 {[%clk 0:02:57.3]}
4. e5 {[%clk 0:02:54.3]} 4... Nfd7 {[%clk 0:02:55.3]} 5. f4 {[%clk 0:02:54.1]}
5... c5 {[%clk 0:02:54.2]} 6. c3 {[%clk 0:02:54.2]} 6... Nc6 {[%clk 0:02:52.7]}
7. Nf3 {[%clk 0:02:54.6]} 7... Qb6 {[%clk 0:02:47.5]} 8. Bc2 {[%clk 0:02:32.1]}
8... cxd4 {[%clk 0:02:45.9]} 9. Nxd4 {[%clk 0:02:29]} 9... Bc5 {[%clk
0:02:39.4]} 10. Nb3 {[%clk 0:02:06.2]} 10... Be3 {[%clk 0:02:10.7]} 11. Qf3
{[%clk 0:01:55.4]} 11... Bxc1 {[%clk 0:01:58.6]} 12. Nxc1 {[%clk 0:01:55.2]}
12... Qxb2 {[%clk 0:01:54.4]} 13. Kd2 {[%clk 0:01:24.5]} 13... Qxa1 {[%clk
0:01:45]} 14. Qg3 {[%clk 0:00:51.6]} 14... g6 {[%clk 0:01:39.3]} 15. f5 {[%clk
0:00:23.5]} 15... Ndxe5 {[%clk 0:01:32.8]} 16. f6 {[%clk 0:00:18.7]} 16... Nc4+
{[%clk 0:01:22.9]} 17. Kd1 {[%clk 0:00:16.4]} 17... Qb2 {[%clk 0:01:09.2]} 18.
Nd2 {[%clk 0:00:14.5]} 18... Nxd2 {[%clk 0:00:48.6]} 19. Qd6 {[%clk 0:00:14.1]}
19... Nc4 {[%clk 0:00:41]} 20. Qf4 {[%clk 0:00:07]} 20... Qxc3 {[%clk
0:00:38.8]} 21. Nb3 {[%clk 0:00:03.6]} 21... Qe3 {[%clk 0:00:37.6]} 22. Qh6
{[%clk 0:00:02.3]} 22... Qxh6 {[%clk 0:00:36.2]} 0-1

[Event "*** SCC Grand Prix: Titled Tuesday Blitz"]
[Site "Chess.com"]
[Date "2020.08.11"]
[Round "2"]
[White "AlanZhang"]
[Black "djano"]
[Result "0-1"]
[WhiteElo "2184"]
[BlackElo "2413"]
[TimeControl "180+1"]
[EndTime "10:17:56 PDT"]
[Termination "djano won by checkmate"]

1. e4 {[%clk 0:03:00.9]} 1... b6 {[%clk 0:02:55.6]} 2. d4 {[%clk 0:02:56]} 2...
Bb7 {[%clk 0:02:55.7]} 3. Nc3 {[%clk 0:02:56.5]} 3... g6 {[%clk 0:02:55]} 4. f3
{[%clk 0:02:56.2]} 4... Bg7 {[%clk 0:02:55.1]} 5. Be3 {[%clk 0:02:56.5]} 5... d6
{[%clk 0:02:53.1]} 6. Qd2 {[%clk 0:02:56.6]} 6... Nd7 {[%clk 0:02:53.1]} 7.
O-O-O {[%clk 0:02:53.9]} 7... c5 {[%clk 0:02:51.5]} 8. Nge2 {[%clk 0:02:47.7]}
8... Rc8 {[%clk 0:02:49.8]} 9. g4 {[%clk 0:02:43.6]} 9... a6 {[%clk 0:02:43.7]}
10. Kb1 {[%clk 0:01:56.2]} 10... b5 {[%clk 0:02:43.6]} 11. a3 {[%clk 0:01:48.7]}
11... b4 {[%clk 0:02:37.8]} 12. axb4 {[%clk 0:01:48.4]} 12... cxb4 {[%clk
0:02:38.7]} 13. Na2 {[%clk 0:01:23.5]} 13... a5 {[%clk 0:02:38.5]} 14. d5 {[%clk
0:01:23]} 14... Ne5 {[%clk 0:02:34.2]} 15. Nd4 {[%clk 0:01:22.7]} 15... Nc4
{[%clk 0:02:25.7]} 16. Bxc4 {[%clk 0:01:22]} 16... Rxc4 {[%clk 0:02:26.6]} 17.
b3 {[%clk 0:01:09]} 17... Rc8 {[%clk 0:02:23.7]} 18. Ne2 {[%clk 0:01:07.2]}
18... Qc7 {[%clk 0:01:47.6]} 19. Bd4 {[%clk 0:01:06.8]} 19... Bxd4 {[%clk
0:01:42.7]} 20. Nxd4 {[%clk 0:01:05.9]} 20... Nf6 {[%clk 0:01:42.4]} 21. h4
{[%clk 0:00:57.8]} 21... h5 {[%clk 0:01:41.9]} 22. g5 {[%clk 0:00:50.2]} 22...
Nd7 {[%clk 0:01:41.9]} 23. f4 {[%clk 0:00:48.1]} 23... O-O {[%clk 0:01:40]} 24.
Nc1 {[%clk 0:00:42.8]} 24... a4 {[%clk 0:01:38.9]} 25. Qxb4 {[%clk 0:00:39.6]}
25... Nc5 {[%clk 0:01:33.8]} 26. Rhe1 {[%clk 0:00:33.2]} 26... Ba6 {[%clk
0:01:28.8]} 27. Nc6 {[%clk 0:00:27.8]} 27... axb3 {[%clk 0:01:18.8]} 28. Nxb3
{[%clk 0:00:24.5]} 28... Rb8 {[%clk 0:01:19.1]} 29. Nxb8 {[%clk 0:00:23]} 29...
Rxb8 {[%clk 0:01:20]} 30. Qa3 {[%clk 0:00:09]} 30... Bd3 {[%clk 0:01:11.2]} 31.
Ka2 {[%clk 0:00:03.9]} 31... Nxb3 {[%clk 0:00:57.9]} 32. cxb3 {[%clk 0:00:03.8]}
32... Qc2+ {[%clk 0:00:57.8]} 33. Qb2 {[%clk 0:00:03.4]} 33... Ra8# {[%clk
0:00:57.4]} 0-1

[Event "*** SCC Grand Prix: Titled Tuesday Blitz"]
[Site "Chess.com"]
[Date "2020.08.11"]
[Round "2"]
[White "UCantHandleDenker"]
[Black "vladislavkovalev"]
[Result "0-1"]
[WhiteElo "2577"]
[BlackElo "2884"]
[TimeControl "180+1"]
[EndTime "10:17:58 PDT"]
[Termination "vladislavkovalev won by resignation"]

1. Nf3 {[%clk 0:02:58.9]} 1... Nf6 {[%clk 0:03:00]} 2. g3 {[%clk 0:02:56.9]}
2... g6 {[%clk 0:03:00.4]} 3. Bg2 {[%clk 0:02:56.5]} 3... Bg7 {[%clk 0:03:01.3]}
4. O-O {[%clk 0:02:56.6]} 4... d6 {[%clk 0:03:02]} 5. c4 {[%clk 0:02:55.5]} 5...
O-O {[%clk 0:03:02.5]} 6. Nc3 {[%clk 0:02:55.8]} 6... Nc6 {[%clk 0:03:02.9]} 7.
d3 {[%clk 0:02:55.8]} 7... e5 {[%clk 0:03:03.1]} 8. Rb1 {[%clk 0:02:56.3]} 8...
Bf5 {[%clk 0:02:55.9]} 9. Nd2 {[%clk 0:02:54.8]} 9... Qd7 {[%clk 0:02:55.6]} 10.
b4 {[%clk 0:02:54.1]} 10... Bh3 {[%clk 0:02:55.8]} 11. b5 {[%clk 0:02:53.8]}
11... Bxg2 {[%clk 0:02:55.8]} 12. Kxg2 {[%clk 0:02:54.7]} 12... Ne7 {[%clk
0:02:50.9]} 13. a4 {[%clk 0:02:54]} 13... h5 {[%clk 0:02:50]} 14. h4 {[%clk
0:02:51.8]} 14... Ng4 {[%clk 0:02:45]} 15. Nf3 {[%clk 0:02:47.1]} 15... f5
{[%clk 0:02:33.2]} 16. Qc2 {[%clk 0:02:39.9]} 16... f4 {[%clk 0:02:32.7]} 17.
Ne4 {[%clk 0:02:36.9]} 17... Nf5 {[%clk 0:02:32]} 18. Kg1 {[%clk 0:02:06]} 18...
Rae8 {[%clk 0:02:17.3]} 19. Qb3 {[%clk 0:01:59.8]} 19... Kh8 {[%clk 0:02:12.8]}
20. Bd2 {[%clk 0:01:57]} 20... Qe7 {[%clk 0:01:42]} 21. Qa3 {[%clk 0:01:33.5]}
21... Nd4 {[%clk 0:01:39.2]} 22. Nxd4 {[%clk 0:01:31.5]} 22... exd4 {[%clk
0:01:40.1]} 23. Rbe1 {[%clk 0:01:24.5]} 23... Be5 {[%clk 0:01:37.6]} 24. Kg2
{[%clk 0:01:22.4]} 24... Rf7 {[%clk 0:01:27]} 25. c5 {[%clk 0:01:04.8]} 25... d5
{[%clk 0:01:24.8]} 26. Ng5 {[%clk 0:01:05.3]} 26... Rf5 {[%clk 0:01:24.5]} 27.
Nf3 {[%clk 0:01:05.1]} 27... Ref8 {[%clk 0:01:15.4]} 28. Bb4 {[%clk 0:01:03.8]}
28... c6 {[%clk 0:01:14.2]} 29. bxc6 {[%clk 0:01:03.1]} 29... bxc6 {[%clk
0:01:15.1]} 30. Bd2 {[%clk 0:01:03.4]} 30... Qc7 {[%clk 0:01:00.4]} 31. Qb4
{[%clk 0:00:58.9]} 31... fxg3 {[%clk 0:00:46.5]} 32. fxg3 {[%clk 0:00:57.2]}
32... Bxg3 {[%clk 0:00:47.4]} 33. Qxd4+ {[%clk 0:00:55]} 33... Kg8 {[%clk
0:00:47.7]} 34. Rb1 {[%clk 0:00:52.3]} 34... Bxh4 {[%clk 0:00:41.3]} 35. Rh1
{[%clk 0:00:36.7]} 35... Qg3+ {[%clk 0:00:38.9]} 36. Kf1 {[%clk 0:00:34.1]}
36... Rxf3+ {[%clk 0:00:39.5]} 37. exf3 {[%clk 0:00:33]} 37... Qxf3+ {[%clk
0:00:39.3]} 0-1

[Event "*** SCC Grand Prix: Titled Tuesday Blitz"]
[Site "Chess.com"]
[Date "2020.08.11"]
[Round "2"]
[White "OK97"]
[Black "Iskusnyh"]
[Result "1-0"]
[WhiteElo "2870"]
[BlackElo "2569"]
[TimeControl "180+1"]
[EndTime "10:17:58 PDT"]
[Termination "OK97 won by resignation"]

1. Nf3 {[%clk 0:03:00.9]} 1... d5 {[%clk 0:02:59.2]} 2. g3 {[%clk 0:03:01.1]}
2... Nf6 {[%clk 0:02:58.5]} 3. Bg2 {[%clk 0:03:01.4]} 3... c6 {[%clk 0:02:58.4]}
4. O-O {[%clk 0:03:01.2]} 4... Bf5 {[%clk 0:02:58.1]} 5. c4 {[%clk 0:02:58.1]}
5... e6 {[%clk 0:02:57.4]} 6. cxd5 {[%clk 0:02:58.2]} 6... exd5 {[%clk 0:02:55]}
7. d3 {[%clk 0:02:58.5]} 7... Be7 {[%clk 0:02:53.6]} 8. Qb3 {[%clk 0:02:58.4]}
8... Qb6 {[%clk 0:02:49.7]} 9. Qc2 {[%clk 0:02:58.7]} 9... O-O {[%clk
0:02:47.3]} 10. Nc3 {[%clk 0:02:59.2]} 10... Na6 {[%clk 0:02:40.7]} 11. a3
{[%clk 0:02:57.5]} 11... Nc5 {[%clk 0:02:21.7]} 12. Be3 {[%clk 0:02:43]} 12...
Qd8 {[%clk 0:01:29.1]} 13. Nh4 {[%clk 0:01:59.9]} 13... Be6 {[%clk 0:00:48.3]}
14. Bd4 {[%clk 0:01:37]} 14... Ncd7 {[%clk 0:00:43.9]} 15. b4 {[%clk 0:01:35.2]}
15... Rc8 {[%clk 0:00:43]} 16. e4 {[%clk 0:01:33.6]} 16... dxe4 {[%clk
0:00:33.5]} 17. dxe4 {[%clk 0:01:34.5]} 17... c5 {[%clk 0:00:33.7]} 18. bxc5
{[%clk 0:01:34.1]} 18... Bxc5 {[%clk 0:00:32.8]} 19. Bxc5 {[%clk 0:01:22.5]}
19... Rxc5 {[%clk 0:00:32.4]} 20. Rac1 {[%clk 0:01:21.5]} 20... Qa5 {[%clk
0:00:30.9]} 21. Qb2 {[%clk 0:01:12.6]} 21... Rfc8 {[%clk 0:00:29.9]} 22. Ne2
{[%clk 0:01:12.9]} 22... b6 {[%clk 0:00:27.7]} 23. Rxc5 {[%clk 0:01:11.3]} 23...
Nxc5 {[%clk 0:00:26.7]} 24. Nd4 {[%clk 0:01:08.7]} 24... Na4 {[%clk 0:00:16.8]}
25. Qa1 {[%clk 0:00:50.7]} 25... Qc3 {[%clk 0:00:14.2]} 26. Nxe6 {[%clk
0:00:50.7]} 26... Qxa1 {[%clk 0:00:13.6]} 27. Rxa1 {[%clk 0:00:51.3]} 27... fxe6
{[%clk 0:00:14.2]} 28. e5 {[%clk 0:00:49.6]} 28... Nd5 {[%clk 0:00:13.3]} 29.
Nf5 {[%clk 0:00:44.6]} 29... Kf7 {[%clk 0:00:11.8]} 30. Nd6+ {[%clk 0:00:44.4]}
1-0

[Event "*** SCC Grand Prix: Titled Tuesday Blitz"]
[Site "Chess.com"]
[Date "2020.08.11"]
[Round "2"]
[White "mohssenbinaddi"]
[Black "pandamaster3000"]
[Result "1/2-1/2"]
[WhiteElo "2191"]
[BlackElo "2409"]
[TimeControl "180+1"]
[EndTime "10:17:59 PDT"]
[Termination "Game drawn by agreement"]

1. Nf3 {[%clk 0:03:00.9]} 1... Nf6 {[%clk 0:02:59.7]} 2. g3 {[%clk 0:02:28.7]}
2... g6 {[%clk 0:02:58.8]} 3. Bg2 {[%clk 0:02:29.1]} 3... Bg7 {[%clk 0:02:59.1]}
4. O-O {[%clk 0:02:27.8]} 4... O-O {[%clk 0:03:00]} 5. c4 {[%clk 0:02:24.8]}
5... d6 {[%clk 0:03:00.1]} 6. Nc3 {[%clk 0:02:25.2]} 6... Nc6 {[%clk 0:03:00.2]}
7. d4 {[%clk 0:02:25.3]} 7... a6 {[%clk 0:03:00]} 8. b3 {[%clk 0:02:25.7]} 8...
Rb8 {[%clk 0:02:59]} 9. Nd5 {[%clk 0:02:26.2]} 9... e6 {[%clk 0:02:50.8]} 10.
Nxf6+ {[%clk 0:01:50.4]} 10... Bxf6 {[%clk 0:02:51.7]} 11. Bh6 {[%clk
0:01:50.5]} 11... Re8 {[%clk 0:02:51.2]} 12. Rc1 {[%clk 0:01:50.8]} 12... e5
{[%clk 0:02:44.6]} 13. dxe5 {[%clk 0:01:16.9]} 13... Nxe5 {[%clk 0:02:26.5]} 14.
Nxe5 {[%clk 0:01:13.1]} 14... dxe5 {[%clk 0:02:21.1]} 15. Qxd8 {[%clk
0:01:08.9]} 15... Rxd8 {[%clk 0:02:22]} 16. Rfd1 {[%clk 0:01:08.8]} 16... Rxd1+
{[%clk 0:02:19.1]} 17. Rxd1 {[%clk 0:01:08.3]} 17... c6 {[%clk 0:02:20]} 18. Rd6
{[%clk 0:00:52.6]} 18... Be6 {[%clk 0:02:09.9]} 19. h4 {[%clk 0:00:41.8]} 19...
Be7 {[%clk 0:02:08.7]} 20. Rd1 {[%clk 0:00:37.9]} 20... f6 {[%clk 0:02:06.5]}
21. f4 {[%clk 0:00:33.4]} 21... Bc5+ {[%clk 0:01:47.3]} 22. Kh2 {[%clk
0:00:30.7]} 22... Bd4 {[%clk 0:01:42.8]} 23. fxe5 {[%clk 0:00:25.9]} 23... Bxe5
{[%clk 0:01:43.7]} 24. Bf4 {[%clk 0:00:25.3]} 24... Kf7 {[%clk 0:01:37.5]} 25.
Bxe5 {[%clk 0:00:25.2]} 25... fxe5 {[%clk 0:01:38.4]} 26. Bh3 {[%clk 0:00:17]}
26... a5 {[%clk 0:01:27.6]} 27. Rd6 {[%clk 0:00:14.7]} 27... Bxh3 {[%clk
0:01:27.1]} 28. Kxh3 {[%clk 0:00:15.5]} 28... Ke7 {[%clk 0:01:26.9]} 29. Rd3
{[%clk 0:00:14.7]} 29... b6 {[%clk 0:01:15.4]} 30. Kg4 {[%clk 0:00:12.9]} 30...
Ke6 {[%clk 0:01:15.2]} 31. Kg5 {[%clk 0:00:12]} 31... Rf8 {[%clk 0:00:48.7]} 32.
Kh6 {[%clk 0:00:10.2]} 1/2-1/2

[Event "*** SCC Grand Prix: Titled Tuesday Blitz"]
[Site "Chess.com"]
[Date "2020.08.11"]
[Round "2"]
[White "Region_07"]
[Black "HouseOfDurin"]
[Result "1-0"]
[WhiteElo "2378"]
[BlackElo "2079"]
[TimeControl "180+1"]
[EndTime "10:17:59 PDT"]
[Termination "Region_07 won on time"]

1. d4 {[%clk 0:03:00.9]} 1... Nf6 {[%clk 0:02:58.9]} 2. Bg5 {[%clk 0:02:59.6]}
2... Ne4 {[%clk 0:02:57.8]} 3. h4 {[%clk 0:02:58.9]} 3... d5 {[%clk 0:02:58.3]}
4. e3 {[%clk 0:02:58]} 4... c6 {[%clk 0:02:33.6]} 5. Bd3 {[%clk 0:02:56.6]} 5...
Bf5 {[%clk 0:02:30.8]} 6. g4 {[%clk 0:02:52.1]} 6... Be6 {[%clk 0:02:20.8]} 7.
Bf4 {[%clk 0:02:35.4]} 7... Qd7 {[%clk 0:02:13.3]} 8. f3 {[%clk 0:02:32.1]} 8...
Nd6 {[%clk 0:02:13.3]} 9. Nd2 {[%clk 0:02:28]} 9... g6 {[%clk 0:02:11.5]} 10.
Nh3 {[%clk 0:02:22.8]} 10... h5 {[%clk 0:02:04.8]} 11. Ng5 {[%clk 0:02:19]}
11... hxg4 {[%clk 0:02:04.4]} 12. Nxe6 {[%clk 0:02:17.7]} 12... Qxe6 {[%clk
0:02:05]} 13. fxg4 {[%clk 0:02:17.5]} 13... g5 {[%clk 0:01:46.5]} 14. Bxg5
{[%clk 0:02:13.2]} 14... Bh6 {[%clk 0:01:38]} 15. Bxh6 {[%clk 0:02:02.8]} 15...
Rxh6 {[%clk 0:01:38.9]} 16. Qe2 {[%clk 0:01:52.2]} 16... Ne4 {[%clk 0:01:37.6]}
17. Nxe4 {[%clk 0:01:50.5]} 17... dxe4 {[%clk 0:01:38.5]} 18. Bc4 {[%clk
0:01:50.5]} 18... Qf6 {[%clk 0:01:24.2]} 19. g5 {[%clk 0:01:37.1]} 19... Qxg5
{[%clk 0:01:23.2]} 20. hxg5 {[%clk 0:01:37]} 20... Rxh1+ {[%clk 0:01:24.1]} 21.
Kd2 {[%clk 0:01:35.7]} 21... Rxa1 {[%clk 0:01:25]} 22. Qf2 {[%clk 0:01:08.7]}
22... e6 {[%clk 0:01:11.7]} 23. g6 {[%clk 0:01:04.1]} 23... fxg6 {[%clk
0:00:58.6]} 24. Bxe6 {[%clk 0:01:03.8]} 24... Kd8 {[%clk 0:00:39.5]} 25. Qf7
{[%clk 0:01:01.7]} 25... Rh1 {[%clk 0:00:06.3]} 26. Qxb7 {[%clk 0:00:56.6]}
26... Rh2+ {[%clk 0:00:04.7]} 27. Kc3 {[%clk 0:00:56.4]} 27... Rh5 {[%clk
0:00:01.5]} 28. Qxa8 {[%clk 0:00:53.5]} 28... Rb5 {[%clk 0:00:02]} 29. Qxa7
{[%clk 0:00:50.9]} 1-0

[Event "*** SCC Grand Prix: Titled Tuesday Blitz"]
[Site "Chess.com"]
[Date "2020.08.11"]
[Round "2"]
[White "chess94cu"]
[Black "GMBenjaminBok"]
[Result "0-1"]
[WhiteElo "2585"]
[BlackElo "2908"]
[TimeControl "180+1"]
[EndTime "10:18:01 PDT"]
[Termination "GMBenjaminBok won by resignation"]

1. d4 {[%clk 0:03:00.9]} 1... Nf6 {[%clk 0:02:58.9]} 2. c4 {[%clk 0:03:00.8]}
2... e6 {[%clk 0:02:59.3]} 3. Nf3 {[%clk 0:03:00.2]} 3... d5 {[%clk 0:02:59.4]}
4. Nc3 {[%clk 0:02:59.7]} 4... c6 {[%clk 0:02:59.6]} 5. e3 {[%clk 0:02:54.8]}
5... Nbd7 {[%clk 0:02:59.7]} 6. Qc2 {[%clk 0:02:54.1]} 6... Bd6 {[%clk
0:02:59.8]} 7. b3 {[%clk 0:02:53.6]} 7... O-O {[%clk 0:02:58.6]} 8. Be2 {[%clk
0:02:51.8]} 8... b6 {[%clk 0:02:58.7]} 9. O-O {[%clk 0:02:51.5]} 9... Bb7 {[%clk
0:02:59.2]} 10. Bb2 {[%clk 0:02:51.3]} 10... Qe7 {[%clk 0:02:59.6]} 11. e4
{[%clk 0:02:42.8]} 11... dxe4 {[%clk 0:02:58.4]} 12. Nxe4 {[%clk 0:02:43.6]}
12... Nxe4 {[%clk 0:02:59]} 13. Qxe4 {[%clk 0:02:43]} 13... Nf6 {[%clk
0:02:55.9]} 14. Qh4 {[%clk 0:02:42.9]} 14... c5 {[%clk 0:02:34.3]} 15. Rad1
{[%clk 0:02:25.6]} 15... Rad8 {[%clk 0:02:28.2]} 16. Rfe1 {[%clk 0:02:00.6]}
16... cxd4 {[%clk 0:02:16.6]} 17. Rxd4 {[%clk 0:01:45]} 17... Bb4 {[%clk
0:01:37.7]} 18. Red1 {[%clk 0:01:42]} 18... Bc5 {[%clk 0:01:38]} 19. Rf4 {[%clk
0:01:09.8]} 19... Bxf3 {[%clk 0:01:18.3]} 20. Bxf3 {[%clk 0:00:59.5]} 20... e5
{[%clk 0:00:35.7]} 21. Rf5 {[%clk 0:00:48]} 21... Rxd1+ {[%clk 0:00:33.9]} 22.
Bxd1 {[%clk 0:00:47.4]} 22... Qd7 {[%clk 0:00:34.5]} 23. Bg4 {[%clk 0:00:23.7]}
23... Qd2 {[%clk 0:00:28.6]} 24. Rxe5 {[%clk 0:00:12.8]} 24... Qxb2 {[%clk
0:00:23.9]} 0-1